[Event "Early-Titled-Tuesday-Blitz-October-03-2023"]
[Site "Chess.com"]
[Date "2023.10.03"]
[Round "8"]
[White "Kotofeyca"]
[Black "Herzog2012"]
[Result "1-0"]
[WhiteElo "2417"]
[BlackElo "2505"]
[TimeControl "180+1"]
[EndTime "9:30:39 PDT"]
[Termination "Kotofeyca won on time"]

1. d4 {[%clk 0:03:00.9]} 1... Nf6 {[%clk 0:02:57]} 2. c4 {[%clk 0:03:00.8]} 2...
e6 {[%clk 0:02:56.8]} 3. Nf3 {[%clk 0:03:00.7]} 3... b6 {[%clk 0:02:56.8]} 4. g3
{[%clk 0:03:00.4]} 4... Ba6 {[%clk 0:02:57.2]} 5. Qa4 {[%clk 0:03:00]} 5... Bb7
{[%clk 0:02:56]} 6. Bg2 {[%clk 0:02:59.6]} 6... Be7 {[%clk 0:02:56]} 7. Nc3
{[%clk 0:02:59.8]} 7... O-O {[%clk 0:02:54.5]} 8. O-O {[%clk 0:02:59.8]} 8... d5
{[%clk 0:02:54.5]} 9. cxd5 {[%clk 0:02:59.4]} 9... exd5 {[%clk 0:02:55.4]} 10.
Bf4 {[%clk 0:02:57.8]} 10... a6 {[%clk 0:02:48.6]} 11. Rfd1 {[%clk 0:02:56.7]}
11... Nbd7 {[%clk 0:02:47.7]} 12. Ne5 {[%clk 0:02:56.5]} 12... b5 {[%clk
0:02:13.2]} 13. Qc2 {[%clk 0:02:42.8]} 13... Bd6 {[%clk 0:02:07.7]} 14. Nxd7
{[%clk 0:02:35.8]} 14... Qxd7 {[%clk 0:02:08.6]} 15. Bxd6 {[%clk 0:02:35]} 15...
Qxd6 {[%clk 0:02:09.5]} 16. e3 {[%clk 0:02:30.2]} 16... Rfe8 {[%clk 0:01:57.3]}
17. Rac1 {[%clk 0:02:30]} 17... Rac8 {[%clk 0:01:56.2]} 18. Ne2 {[%clk
0:02:26.6]} 18... Ne4 {[%clk 0:01:53.7]} 19. Nf4 {[%clk 0:02:23.9]} 19... c5
{[%clk 0:01:16.3]} 20. dxc5 {[%clk 0:01:58.3]} 20... Rxc5 {[%clk 0:01:13.2]} 21.
Qd3 {[%clk 0:01:51]} 21... Qf6 {[%clk 0:00:36.2]} 22. Rxc5 {[%clk 0:01:26.7]}
22... Nxc5 {[%clk 0:00:37.1]} 23. Nxd5 {[%clk 0:01:23.6]} 23... Qxb2 {[%clk
0:00:26.2]} 24. Ne7+ {[%clk 0:00:55.3]} 24... Kf8 {[%clk 0:00:10.2]} 25. Qd6
{[%clk 0:00:53.7]} 25... Qf6 {[%clk 0:00:05]} 26. Qxc5 {[%clk 0:00:40]} 26...
Qxe7 {[%clk 0:00:04.9]} 27. Qxe7+ {[%clk 0:00:36.7]} 27... Kxe7 {[%clk
0:00:01.6]} 28. Bxb7 {[%clk 0:00:35.7]} 28... a5 {[%clk 0:00:01.8]} 29. Bc6
{[%clk 0:00:33.3]} 29... Rb8 {[%clk 0:00:02]} 30. Rd5 {[%clk 0:00:33.3]} 30...
a4 {[%clk 0:00:02]} 31. Rxb5 {[%clk 0:00:32.2]} 31... Rc8 {[%clk 0:00:02.4]} 32.
Rb7+ {[%clk 0:00:31.9]} 32... Kf6 {[%clk 0:00:02.2]} 33. Bxa4 {[%clk 0:00:32.8]}
33... Rc1+ {[%clk 0:00:02.1]} 34. Kg2 {[%clk 0:00:33.2]} 34... Kg6 {[%clk
0:00:02.6]} 35. Bb3 {[%clk 0:00:32.8]} 35... f6 {[%clk 0:00:02.9]} 36. h4 {[%clk
0:00:29.2]} 36... Kh6 {[%clk 0:00:03.2]} 37. Kf3 {[%clk 0:00:27.8]} 37... Rb1
{[%clk 0:00:03.3]} 38. Rb5 {[%clk 0:00:24.7]} 38... g6 {[%clk 0:00:03.1]} 39. a4
{[%clk 0:00:23.4]} 39... Ra1 {[%clk 0:00:02.8]} 40. a5 {[%clk 0:00:23.7]} 40...
f5 {[%clk 0:00:03.2]} 41. Bc4 {[%clk 0:00:23]} 41... Kh5 {[%clk 0:00:02.6]} 42.
Be2 {[%clk 0:00:22.4]} 42... Kh6 {[%clk 0:00:01.6]} 43. Rc5 {[%clk 0:00:21]}
43... Ra3 {[%clk 0:00:01.4]} 44. a6 {[%clk 0:00:21]} 44... Kg7 {[%clk
0:00:02.3]} 45. Rc7+ {[%clk 0:00:21]} 45... Kh6 {[%clk 0:00:03.2]} 46. a7 {[%clk
0:00:21.6]} 46... g5 {[%clk 0:00:03.1]} 47. hxg5+ {[%clk 0:00:20.8]} 47... Kxg5
{[%clk 0:00:03.4]} 48. Rxh7 {[%clk 0:00:20.8]} 48... Kg6 {[%clk 0:00:03.5]} 49.
Rc7 {[%clk 0:00:20.4]} 49... Kg5 {[%clk 0:00:03.7]} 50. Bc4 {[%clk 0:00:20.8]}
50... f4 {[%clk 0:00:03.4]} 51. gxf4+ {[%clk 0:00:20.6]} 51... Kh6 {[%clk
0:00:03.7]} 52. Bd5 {[%clk 0:00:20.4]} 52... Kg6 {[%clk 0:00:02.9]} 53. a8=Q
{[%clk 0:00:20.6]} 53... Rxa8 {[%clk 0:00:03.4]} 54. Bxa8 {[%clk 0:00:20.9]}
54... Kf6 {[%clk 0:00:03.4]} 55. Rc6+ {[%clk 0:00:21.3]} 55... Kf7 {[%clk
0:00:03]} 56. f5 {[%clk 0:00:21.9]} 56... Ke7 {[%clk 0:00:02.4]} 57. e4 {[%clk
0:00:22.8]} 57... Kd7 {[%clk 0:00:02.7]} 58. e5 {[%clk 0:00:23.4]} 58... Ke7
{[%clk 0:00:03.3]} 59. f6+ {[%clk 0:00:23.9]} 59... Kf7 {[%clk 0:00:03.9]} 60.
Kf4 {[%clk 0:00:24.1]} 60... Kg6 {[%clk 0:00:04.5]} 61. Rc7 {[%clk 0:00:22.8]}
61... Kh5 {[%clk 0:00:03]} 62. Rg7 {[%clk 0:00:21.3]} 62... Kh6 {[%clk
0:00:03.2]} 63. Rg3 {[%clk 0:00:19.1]} 63... Kh7 {[%clk 0:00:01.2]} 64. f7
{[%clk 0:00:19.4]} 1-0

[Event "Early-Titled-Tuesday-Blitz-October-03-2023"]
[Site "Chess.com"]
[Date "2023.10.03"]
[Round "8"]
[White "Sergey85Rodchenkov"]
[Black "wqws"]
[Result "0-1"]
[WhiteElo "2520"]
[BlackElo "2664"]
[TimeControl "180+1"]
[EndTime "9:30:41 PDT"]
[Termination "wqws won by resignation"]

1. e4 {[%clk 0:03:00.9]} 1... c5 {[%clk 0:03:00]} 2. Nf3 {[%clk 0:03:00.9]} 2...
d6 {[%clk 0:03:00.5]} 3. d4 {[%clk 0:03:01.5]} 3... cxd4 {[%clk 0:03:01.4]} 4.
Nxd4 {[%clk 0:03:02.4]} 4... Nf6 {[%clk 0:03:02.3]} 5. Nc3 {[%clk 0:03:03]} 5...
a6 {[%clk 0:03:03]} 6. Be3 {[%clk 0:03:02.6]} 6... e5 {[%clk 0:03:03.5]} 7. Nb3
{[%clk 0:03:02.8]} 7... Be6 {[%clk 0:03:04]} 8. f3 {[%clk 0:03:02.3]} 8... h5
{[%clk 0:03:04.2]} 9. Qd2 {[%clk 0:03:01.1]} 9... Nbd7 {[%clk 0:03:03.4]} 10.
Be2 {[%clk 0:02:59.7]} 10... Be7 {[%clk 0:03:00.4]} 11. Nd5 {[%clk 0:02:58.2]}
11... Bxd5 {[%clk 0:02:59.9]} 12. exd5 {[%clk 0:02:59.1]} 12... O-O {[%clk
0:03:00.2]} 13. Na5 {[%clk 0:02:52]} 13... Qc7 {[%clk 0:02:57]} 14. O-O {[%clk
0:02:37.9]} 14... Bd8 {[%clk 0:02:47.9]} 15. b4 {[%clk 0:02:36.3]} 15... Qb8
{[%clk 0:02:44.6]} 16. c4 {[%clk 0:02:28.6]} 16... Bb6 {[%clk 0:02:42.6]} 17.
Rac1 {[%clk 0:02:26.2]} 17... Bxe3+ {[%clk 0:02:36.5]} 18. Qxe3 {[%clk
0:02:27.1]} 18... Rc8 {[%clk 0:02:36.6]} 19. Rfd1 {[%clk 0:02:06.6]} 19... Qa7
{[%clk 0:02:32.6]} 20. Qxa7 {[%clk 0:02:05.4]} 20... Rxa7 {[%clk 0:02:33.5]} 21.
c5 {[%clk 0:02:05.8]} 21... dxc5 {[%clk 0:02:32.2]} 22. Nxb7 {[%clk 0:01:54.1]}
22... Rb8 {[%clk 0:02:15.4]} 23. bxc5 {[%clk 0:01:26.6]} 23... Raxb7 {[%clk
0:02:09.8]} 24. c6 {[%clk 0:01:12.9]} 24... Rc7 {[%clk 0:02:02.1]} 25. Bxa6
{[%clk 0:00:45.1]} 25... Nxd5 {[%clk 0:01:25.8]} 26. Rxd5 {[%clk 0:00:32.6]}
26... Nf8 {[%clk 0:01:23]} 27. a4 {[%clk 0:00:24.9]} 27... Ne6 {[%clk
0:01:18.4]} 28. Rd7 {[%clk 0:00:18.2]} 28... Rb2 {[%clk 0:01:02.6]} 29. Bb5
{[%clk 0:00:15.8]} 29... h4 {[%clk 0:00:59.5]} 30. Rcd1 {[%clk 0:00:15.6]} 30...
Rc2 {[%clk 0:00:47.5]} 31. R7d2 {[%clk 0:00:14.9]} 31... Rc3 {[%clk 0:00:39.9]}
32. Rd3 {[%clk 0:00:13.5]} 32... Rc5 {[%clk 0:00:38.6]} 33. Rd5 {[%clk
0:00:12.7]} 33... Rc2 {[%clk 0:00:36.7]} 34. Rxe5 {[%clk 0:00:10.1]} 34... Nf4
{[%clk 0:00:35.6]} 35. g3 {[%clk 0:00:05.4]} 35... hxg3 {[%clk 0:00:34.3]} 36.
hxg3 {[%clk 0:00:06.3]} 36... Nh3+ {[%clk 0:00:34.6]} 37. Kf1 {[%clk 0:00:06.1]}
37... Rf2+ {[%clk 0:00:34.8]} 38. Ke1 {[%clk 0:00:06.4]} 38... Rxf3 {[%clk
0:00:33.8]} 39. Rd7 {[%clk 0:00:06.5]} 39... Rc8 {[%clk 0:00:29.8]} 40. c7
{[%clk 0:00:06.9]} 40... Kh7 {[%clk 0:00:29.7]} 41. Ree7 {[%clk 0:00:05.2]}
41... Rc3 {[%clk 0:00:25.2]} 42. Kd2 {[%clk 0:00:05.5]} 42... Rxg3 {[%clk
0:00:23.2]} 43. Rxf7 {[%clk 0:00:05.5]} 43... Kh6 {[%clk 0:00:20]} 44. Rd8
{[%clk 0:00:05.7]} 44... Rxc7 {[%clk 0:00:19.6]} 45. Rxc7 {[%clk 0:00:05.6]}
45... Ng5 {[%clk 0:00:20.2]} 46. Rd6+ {[%clk 0:00:06]} 46... Kh5 {[%clk
0:00:20.5]} 47. Rc5 {[%clk 0:00:06.9]} 47... Kh4 {[%clk 0:00:20.4]} 48. Be2
{[%clk 0:00:07.6]} 48... Ne4+ {[%clk 0:00:20.6]} 49. Ke1 {[%clk 0:00:06.7]}
49... Nxd6 {[%clk 0:00:20.1]} 50. Rd5 {[%clk 0:00:06.8]} 50... Ne4 {[%clk
0:00:20.2]} 51. Rd4 {[%clk 0:00:07.3]} 51... Re3 {[%clk 0:00:20.2]} 52. a5
{[%clk 0:00:06.8]} 52... Kg5 {[%clk 0:00:19.8]} 53. a6 {[%clk 0:00:07.1]} 53...
Ng3 {[%clk 0:00:20]} 54. Ra4 {[%clk 0:00:07]} 54... Rxe2+ {[%clk 0:00:20]} 55.
Kd1 {[%clk 0:00:07.9]} 55... Re8 {[%clk 0:00:20.2]} 56. a7 {[%clk 0:00:08.4]}
56... Ra8 {[%clk 0:00:20.8]} 57. Kd2 {[%clk 0:00:08.9]} 57... Nf5 {[%clk
0:00:21.2]} 58. Ra5 {[%clk 0:00:08.3]} 58... Kf4 {[%clk 0:00:21.2]} 59. Kc3
{[%clk 0:00:09.2]} 59... g5 {[%clk 0:00:20.7]} 60. Kb4 {[%clk 0:00:08.9]} 60...
g4 {[%clk 0:00:21.2]} 61. Kc5 {[%clk 0:00:09.5]} 61... g3 {[%clk 0:00:21.6]} 62.
Kb6 {[%clk 0:00:10.1]} 62... Nd6 {[%clk 0:00:18.2]} 63. Kc7 {[%clk 0:00:09]}
63... Rxa7+ {[%clk 0:00:17.1]} 64. Rxa7 {[%clk 0:00:07.6]} 64... Nb5+ {[%clk
0:00:17.6]} 65. Kb6 {[%clk 0:00:08.5]} 65... Nxa7 {[%clk 0:00:18.5]} 66. Kxa7
{[%clk 0:00:09.4]} 66... g2 {[%clk 0:00:19]} 0-1

[Event "Early-Titled-Tuesday-Blitz-October-03-2023"]
[Site "Chess.com"]
[Date "2023.10.03"]
[Round "8"]
[White "C_K_G"]
[Black "Tsyhanchuk_Stanislav"]
[Result "0-1"]
[WhiteElo "1902"]
[BlackElo "2443"]
[TimeControl "180+1"]
[EndTime "9:30:41 PDT"]
[Termination "Tsyhanchuk_Stanislav won on time"]

1. e4 {[%clk 0:03:00.9]} 1... c5 {[%clk 0:02:47.3]} 2. Nf3 {[%clk 0:03:00.7]}
2... d6 {[%clk 0:02:47]} 3. d4 {[%clk 0:03:01.2]} 3... cxd4 {[%clk 0:02:47.9]}
4. Nxd4 {[%clk 0:03:01.6]} 4... Nf6 {[%clk 0:02:48.5]} 5. Nc3 {[%clk 0:03:01.8]}
5... a6 {[%clk 0:02:48.6]} 6. Be2 {[%clk 0:03:01.9]} 6... e5 {[%clk 0:02:47.3]}
7. Nb3 {[%clk 0:03:01.9]} 7... Be7 {[%clk 0:02:47.8]} 8. Be3 {[%clk 0:03:01.9]}
8... O-O {[%clk 0:02:48]} 9. O-O {[%clk 0:03:00.6]} 9... b5 {[%clk 0:02:44.5]}
10. Nd5 {[%clk 0:02:34.7]} 10... Bb7 {[%clk 0:02:30.8]} 11. Nxe7+ {[%clk
0:02:13]} 11... Qxe7 {[%clk 0:02:31.7]} 12. f3 {[%clk 0:02:11.7]} 12... Nbd7
{[%clk 0:02:17.8]} 13. Na5 {[%clk 0:02:06.8]} 13... Nc5 {[%clk 0:02:07.6]} 14.
Qd2 {[%clk 0:01:48.4]} 14... Rfd8 {[%clk 0:02:03.2]} 15. Rad1 {[%clk 0:01:43.1]}
15... Ne6 {[%clk 0:01:57.6]} 16. Qb4 {[%clk 0:01:34.7]} 16... Ne8 {[%clk
0:01:23.6]} 17. c4 {[%clk 0:01:27.1]} 17... Qc7 {[%clk 0:00:56.3]} 18. cxb5
{[%clk 0:01:15]} 18... axb5 {[%clk 0:00:45.5]} 19. Nxb7 {[%clk 0:01:10.9]} 19...
Qxb7 {[%clk 0:00:46.4]} 20. a3 {[%clk 0:00:59.5]} 20... d5 {[%clk 0:00:35.7]}
21. exd5 {[%clk 0:00:54.5]} 21... Rxd5 {[%clk 0:00:36.6]} 22. Rxd5 {[%clk
0:00:51.8]} 22... Qxd5 {[%clk 0:00:37.5]} 23. Qxb5 {[%clk 0:00:50]} 23... Qd8
{[%clk 0:00:12.9]} 24. Qxe5 {[%clk 0:00:48.6]} 24... Nf6 {[%clk 0:00:09.8]} 25.
Bc4 {[%clk 0:00:43.8]} 25... Ra5 {[%clk 0:00:06.9]} 26. Qc3 {[%clk 0:00:36.6]}
26... Rh5 {[%clk 0:00:04.6]} 27. Bxe6 {[%clk 0:00:34.3]} 27... fxe6 {[%clk
0:00:05.5]} 28. Bd4 {[%clk 0:00:28]} 28... Qd6 {[%clk 0:00:05.1]} 29. g3 {[%clk
0:00:26.2]} 29... Nd5 {[%clk 0:00:03.7]} 30. Qc5 {[%clk 0:00:24.9]} 30... Qd7
{[%clk 0:00:01.8]} 31. Rc1 {[%clk 0:00:21.5]} 31... Kf7 {[%clk 0:00:01.4]} 32.
Qc6 {[%clk 0:00:20.6]} 32... Qxc6 {[%clk 0:00:01.2]} 33. Rxc6 {[%clk 0:00:20]}
33... Rh6 {[%clk 0:00:01.8]} 34. b4 {[%clk 0:00:18.8]} 34... Ne7 {[%clk
0:00:02]} 35. Rc7 {[%clk 0:00:18.4]} 35... Ke8 {[%clk 0:00:02.2]} 36. Bxg7
{[%clk 0:00:17.5]} 36... Rg6 {[%clk 0:00:02.6]} 37. Be5 {[%clk 0:00:17]} 37...
h5 {[%clk 0:00:02.7]} 38. Ra7 {[%clk 0:00:16.3]} 38... Nd5 {[%clk 0:00:03.1]}
39. b5 {[%clk 0:00:15.3]} 39... h4 {[%clk 0:00:03.4]} 40. Ra6 {[%clk 0:00:13.5]}
40... Kd7 {[%clk 0:00:03.3]} 41. b6 {[%clk 0:00:13.1]} 41... Kc6 {[%clk
0:00:03.7]} 42. a4 {[%clk 0:00:11.6]} 42... Kb7 {[%clk 0:00:04.1]} 43. Ra7+
{[%clk 0:00:11.1]} 43... Kxb6 {[%clk 0:00:04.7]} 44. Rd7 {[%clk 0:00:10.4]}
44... Kc6 {[%clk 0:00:04.9]} 45. Rd6+ {[%clk 0:00:10.5]} 45... Kc5 {[%clk
0:00:05.5]} 46. Kf2 {[%clk 0:00:10.1]} 46... hxg3+ {[%clk 0:00:05.5]} 47. hxg3
{[%clk 0:00:09.9]} 47... Nb4 {[%clk 0:00:05.4]} 48. Rd1 {[%clk 0:00:06.6]} 48...
Kc4 {[%clk 0:00:04.8]} 49. Ke3 {[%clk 0:00:06.1]} 49... Nd5+ {[%clk 0:00:04.7]}
50. Kf2 {[%clk 0:00:05.1]} 50... Rg8 {[%clk 0:00:04.6]} 51. Rc1+ {[%clk
0:00:04.6]} 51... Kb4 {[%clk 0:00:03.9]} 52. Ra1 {[%clk 0:00:04]} 52... Ra8
{[%clk 0:00:03.8]} 53. Bd6+ {[%clk 0:00:02.8]} 53... Ka5 {[%clk 0:00:03.6]} 54.
f4 {[%clk 0:00:02.7]} 54... Rc8 {[%clk 0:00:03.9]} 55. Kf3 {[%clk 0:00:02.5]}
55... Rc3+ {[%clk 0:00:04.4]} 56. Ke4 {[%clk 0:00:02.1]} 56... Rxg3 {[%clk
0:00:03.4]} 0-1

[Event "Early-Titled-Tuesday-Blitz-October-03-2023"]
[Site "Chess.com"]
[Date "2023.10.03"]
[Round "8"]
[White "AlexPapasimakopoulos"]
[Black "Elsa167"]
[Result "0-1"]
[WhiteElo "2706"]
[BlackElo "2908"]
[TimeControl "180+1"]
[EndTime "9:30:47 PDT"]
[Termination "Elsa167 won by checkmate"]

1. Nf3 {[%clk 0:02:50.6]} 1... Nf6 {[%clk 0:02:59.9]} 2. b3 {[%clk 0:02:50.2]}
2... g6 {[%clk 0:03:00.3]} 3. Bb2 {[%clk 0:02:50.2]} 3... Bg7 {[%clk 0:03:01]}
4. g3 {[%clk 0:02:50.9]} 4... O-O {[%clk 0:03:01.5]} 5. Bg2 {[%clk 0:02:51.3]}
5... d6 {[%clk 0:03:01]} 6. d4 {[%clk 0:02:51.1]} 6... a5 {[%clk 0:02:52.5]} 7.
c4 {[%clk 0:02:38.5]} 7... a4 {[%clk 0:02:52.7]} 8. Nc3 {[%clk 0:02:36.8]} 8...
a3 {[%clk 0:02:18.3]} 9. Bc1 {[%clk 0:02:35.7]} 9... c6 {[%clk 0:02:18.6]} 10.
O-O {[%clk 0:02:35]} 10... Qa5 {[%clk 0:02:18.6]} 11. Bd2 {[%clk 0:02:34.7]}
11... Qa7 {[%clk 0:02:18.3]} 12. h3 {[%clk 0:02:28.5]} 12... Bf5 {[%clk
0:02:14.9]} 13. Re1 {[%clk 0:02:12.2]} 13... Ne4 {[%clk 0:02:14.9]} 14. Nxe4
{[%clk 0:02:11]} 14... Bxe4 {[%clk 0:02:15.8]} 15. e3 {[%clk 0:02:11.4]} 15...
Nd7 {[%clk 0:02:01]} 16. Bc3 {[%clk 0:02:10]} 16... b5 {[%clk 0:01:56.7]} 17.
Nd2 {[%clk 0:02:01.7]} 17... Bxg2 {[%clk 0:01:56.7]} 18. Kxg2 {[%clk 0:02:02.6]}
18... Qb7 {[%clk 0:01:47.2]} 19. Qf3 {[%clk 0:01:56.8]} 19... b4 {[%clk
0:01:46.1]} 20. Bxb4 {[%clk 0:01:51.3]} 20... Qxb4 {[%clk 0:01:47]} 21. Qxc6
{[%clk 0:01:51.3]} 21... Nf6 {[%clk 0:01:35]} 22. Ne4 {[%clk 0:01:48.7]} 22...
Nxe4 {[%clk 0:01:22.5]} 23. Qxe4 {[%clk 0:01:49.6]} 23... e6 {[%clk 0:01:21.9]}
24. Red1 {[%clk 0:01:44.5]} 24... d5 {[%clk 0:01:09.2]} 25. Qd3 {[%clk
0:01:31.5]} 25... dxc4 {[%clk 0:01:06.7]} 26. bxc4 {[%clk 0:01:24.3]} 26... Rac8
{[%clk 0:01:03]} 27. Rdc1 {[%clk 0:01:20.5]} 27... e5 {[%clk 0:01:02.2]} 28.
Rab1 {[%clk 0:01:19.5]} 28... Qa5 {[%clk 0:01:00.3]} 29. d5 {[%clk 0:01:04.2]}
29... e4 {[%clk 0:00:45.4]} 30. Qxe4 {[%clk 0:00:59.1]} 30... Bb2 {[%clk
0:00:46]} 31. Rc2 {[%clk 0:00:56.4]} 31... Qc5 {[%clk 0:00:33.7]} 32. Rd1 {[%clk
0:00:56.2]} 32... Rfe8 {[%clk 0:00:31.8]} 33. Qd3 {[%clk 0:00:55.6]} 33... Rc7
{[%clk 0:00:31.5]} 34. h4 {[%clk 0:00:47.7]} 34... h5 {[%clk 0:00:31.1]} 35. Qb3
{[%clk 0:00:44.2]} 35... Qd6 {[%clk 0:00:29]} 36. Qb5 {[%clk 0:00:40.8]} 36...
Rec8 {[%clk 0:00:28.5]} 37. Qb3 {[%clk 0:00:36.5]} 37... Rc5 {[%clk 0:00:26.7]}
38. e4 {[%clk 0:00:24]} 38... Qa6 {[%clk 0:00:15.2]} 39. Qd3 {[%clk 0:00:17.4]}
39... Qa4 {[%clk 0:00:07.1]} 40. d6 {[%clk 0:00:14]} 40... Qd7 {[%clk
0:00:03.5]} 41. f4 {[%clk 0:00:14.3]} 41... Kg7 {[%clk 0:00:02.1]} 42. e5 {[%clk
0:00:14.3]} 42... Qe6 {[%clk 0:00:02.6]} 43. Kh2 {[%clk 0:00:13.3]} 43... R5c6
{[%clk 0:00:02.4]} 44. c5 {[%clk 0:00:11.6]} 44... Kg8 {[%clk 0:00:01.5]} 45.
Rc4 {[%clk 0:00:10.9]} 45... Qd7 {[%clk 0:00:01.9]} 46. Rd2 {[%clk 0:00:10.4]}
46... Rxc5 {[%clk 0:00:02.1]} 47. Rxc5 {[%clk 0:00:10.3]} 47... Rxc5 {[%clk
0:00:03]} 48. Qb3 {[%clk 0:00:08.3]} 48... Rc8 {[%clk 0:00:03.3]} 49. Qd5 {[%clk
0:00:07.8]} 49... Kf8 {[%clk 0:00:03.6]} 50. Re2 {[%clk 0:00:07.8]} 50... Qe6
{[%clk 0:00:03.7]} 51. Qe4 {[%clk 0:00:08.1]} 51... Rc4 {[%clk 0:00:03.8]} 52.
Qa8+ {[%clk 0:00:07.8]} 52... Rc8 {[%clk 0:00:03.2]} 53. Qe4 {[%clk 0:00:07.4]}
53... Rd8 {[%clk 0:00:02]} 54. Qb1 {[%clk 0:00:05.8]} 54... Rxd6 {[%clk
0:00:01.3]} 55. Rc2 {[%clk 0:00:04.9]} 55... Rd8 {[%clk 0:00:01.5]} 56. Qe1
{[%clk 0:00:05]} 56... Qxa2 {[%clk 0:00:01.8]} 57. Qe4 {[%clk 0:00:04.8]} 57...
Qd5 {[%clk 0:00:02.1]} 58. Qb4+ {[%clk 0:00:05.1]} 58... Kg8 {[%clk 0:00:02]}
59. Re2 {[%clk 0:00:05.2]} 59... Qe6 {[%clk 0:00:01.9]} 60. Qb6 {[%clk 0:00:04]}
60... Qxb6 {[%clk 0:00:01.5]} 61. e6 {[%clk 0:00:04.3]} 61... Qxe6 {[%clk
0:00:02]} 62. Rxe6 {[%clk 0:00:04.5]} 62... fxe6 {[%clk 0:00:02.9]} 63. f5
{[%clk 0:00:04.6]} 63... Rd2+ {[%clk 0:00:03.8]} 64. Kh3 {[%clk 0:00:04.4]}
64... exf5 {[%clk 0:00:04.4]} 65. g4 {[%clk 0:00:05.3]} 65... fxg4+ {[%clk
0:00:05]} 66. Kg3 {[%clk 0:00:05.7]} 66... Be5# {[%clk 0:00:05.3]} 0-1

[Event "Early-Titled-Tuesday-Blitz-October-03-2023"]
[Site "Chess.com"]
[Date "2023.10.03"]
[Round "8"]
[White "ContrVersia"]
[Black "Fantastic_Power"]
[Result "0-1"]
[WhiteElo "2888"]
[BlackElo "2798"]
[TimeControl "180+1"]
[EndTime "9:30:48 PDT"]
[Termination "Fantastic_Power won by resignation"]

1. Nf3 {[%clk 0:03:00.9]} 1... c5 {[%clk 0:02:53.7]} 2. c4 {[%clk 0:03:01.1]}
2... g6 {[%clk 0:02:53.3]} 3. d4 {[%clk 0:03:01.3]} 3... Bg7 {[%clk 0:02:51.6]}
4. e4 {[%clk 0:02:58.3]} 4... Nc6 {[%clk 0:02:50.1]} 5. dxc5 {[%clk 0:02:53.5]}
5... Qa5+ {[%clk 0:02:38.5]} 6. Bd2 {[%clk 0:02:47.3]} 6... Qxc5 {[%clk
0:02:38.8]} 7. Nc3 {[%clk 0:02:47.7]} 7... Nf6 {[%clk 0:02:26.5]} 8. Be2 {[%clk
0:02:45.3]} 8... d6 {[%clk 0:02:16.5]} 9. h3 {[%clk 0:02:37.3]} 9... Qb6 {[%clk
0:02:08.6]} 10. Rb1 {[%clk 0:02:30.4]} 10... O-O {[%clk 0:02:07.3]} 11. O-O
{[%clk 0:02:29.3]} 11... Qd8 {[%clk 0:01:53.5]} 12. Be3 {[%clk 0:02:26.1]} 12...
Be6 {[%clk 0:01:48]} 13. Qd2 {[%clk 0:02:20.4]} 13... Rc8 {[%clk 0:01:43.8]} 14.
b3 {[%clk 0:02:18.6]} 14... Qa5 {[%clk 0:01:29.1]} 15. Rfc1 {[%clk 0:02:15.9]}
15... Rfe8 {[%clk 0:01:15.3]} 16. Ng5 {[%clk 0:02:15.5]} 16... Bd7 {[%clk
0:01:14.8]} 17. Ra1 {[%clk 0:01:47.2]} 17... Ne5 {[%clk 0:01:07]} 18. f4 {[%clk
0:01:38.9]} 18... Nc6 {[%clk 0:01:06.3]} 19. a3 {[%clk 0:01:39.1]} 19... Qd8
{[%clk 0:01:04.1]} 20. b4 {[%clk 0:01:36.1]} 20... e5 {[%clk 0:01:01.9]} 21.
Qxd6 {[%clk 0:00:58.3]} 21... exf4 {[%clk 0:01:00.4]} 22. Qxf4 {[%clk
0:00:55.1]} 22... h6 {[%clk 0:01:00.3]} 23. Nf3 {[%clk 0:00:55]} 23... g5 {[%clk
0:01:00.6]} 24. Qd6 {[%clk 0:00:41.7]} 24... Nxe4 {[%clk 0:01:00.3]} 25. Qd3
{[%clk 0:00:27.3]} 25... Bf5 {[%clk 0:00:48]} 26. Qxd8 {[%clk 0:00:20.5]} 26...
Rcxd8 {[%clk 0:00:48.9]} 27. Nd5 {[%clk 0:00:20.1]} 27... Bxa1 {[%clk
0:00:47.3]} 28. Rxa1 {[%clk 0:00:21]} 28... Kg7 {[%clk 0:00:36.7]} 29. Bf1
{[%clk 0:00:19.9]} 29... Nc3 {[%clk 0:00:27.9]} 30. Nxc3 {[%clk 0:00:14.2]}
30... Rxe3 {[%clk 0:00:27.8]} 31. Nd5 {[%clk 0:00:15.1]} 31... Ree8 {[%clk
0:00:23.7]} 32. Nc7 {[%clk 0:00:13.1]} 32... Re3 {[%clk 0:00:17.9]} 33. Nd5
{[%clk 0:00:13.3]} 33... Re6 {[%clk 0:00:15.3]} 34. b5 {[%clk 0:00:13.4]} 34...
Ne7 {[%clk 0:00:07.6]} 35. Nd4 {[%clk 0:00:08.3]} 35... Re5 {[%clk 0:00:08.1]}
36. Nf3 {[%clk 0:00:08.4]} 36... Re6 {[%clk 0:00:06.1]} 37. Nd4 {[%clk
0:00:08.4]} 37... Re5 {[%clk 0:00:06.4]} 38. Nf3 {[%clk 0:00:08.6]} 38... Rexd5
{[%clk 0:00:06.5]} 39. cxd5 {[%clk 0:00:08.8]} 39... Nxd5 {[%clk 0:00:07]} 40.
Rd1 {[%clk 0:00:05]} 40... Rd7 {[%clk 0:00:06.3]} 41. Re1 {[%clk 0:00:05.5]}
41... Re7 {[%clk 0:00:03.6]} 42. Rc1 {[%clk 0:00:04.3]} 42... Ne3 {[%clk
0:00:02.7]} 43. a4 {[%clk 0:00:04.5]} 43... Nxf1 {[%clk 0:00:02.9]} 44. Kxf1
{[%clk 0:00:05.4]} 44... Bd3+ {[%clk 0:00:03.5]} 45. Kg1 {[%clk 0:00:06.1]}
45... Re2 {[%clk 0:00:03.4]} 46. Rc7 {[%clk 0:00:05.9]} 46... Be4 {[%clk
0:00:03.5]} 47. Kf1 {[%clk 0:00:03.4]} 47... Ra2 {[%clk 0:00:03.6]} 48. Ne5
{[%clk 0:00:01.6]} 48... Bxg2+ {[%clk 0:00:02.2]} 49. Ke1 {[%clk 0:00:02.2]}
49... Bd5 {[%clk 0:00:02.9]} 50. Rd7 {[%clk 0:00:02.4]} 50... Be6 {[%clk
0:00:03]} 51. Rxb7 {[%clk 0:00:02.8]} 51... Rxa4 {[%clk 0:00:03.5]} 52. Nc6
{[%clk 0:00:03.2]} 52... Bxh3 {[%clk 0:00:03.5]} 53. Nxa7 {[%clk 0:00:02.5]}
53... Bg2 {[%clk 0:00:03.5]} 54. Rc7 {[%clk 0:00:02.3]} 54... h5 {[%clk
0:00:04.1]} 55. b6 {[%clk 0:00:01.7]} 55... h4 {[%clk 0:00:04.1]} 56. b7 {[%clk
0:00:01.5]} 56... Bxb7 {[%clk 0:00:02.5]} 57. Rxb7 {[%clk 0:00:02.4]} 57... h3
{[%clk 0:00:03]} 58. Kf2 {[%clk 0:00:03]} 58... Ra2+ {[%clk 0:00:01.9]} 59. Kg3
{[%clk 0:00:02.3]} 59... g4 {[%clk 0:00:02.8]} 60. Nc6 {[%clk 0:00:02.1]} 60...
Rg2+ {[%clk 0:00:03.2]} 61. Kh4 {[%clk 0:00:01.7]} 61... h2 {[%clk 0:00:04.1]}
62. Rb1 {[%clk 0:00:01.6]} 62... Rg1 {[%clk 0:00:04.6]} 0-1